[Event "*** Titled Tuesday 3|2 Blitz"]
[Site "Chess.com"]
[Date "2017.06.06"]
[Round "8"]
[White "Grebeniuk-S"]
[Black "andreimacovei2000"]
[Result "1/2-1/2"]
[WhiteElo "2434"]
[BlackElo "2384"]
[TimeControl "180+2"]
[EndTime "15:40:50 PDT"]
[Termination "Game drawn by 50-move rule"]

1. e4 {[%clk 0:03:02]} 1... c5 {[%clk 0:03:00.2]} 2. d3 {[%clk 0:03:02.5]} 2...
d6 {[%clk 0:03:01.6]} 3. g3 {[%clk 0:03:03]} 3... Nc6 {[%clk 0:02:58.1]} 4. Bg2
{[%clk 0:03:04.2]} 4... g6 {[%clk 0:02:58.4]} 5. f4 {[%clk 0:02:59.9]} 5... Bg7
{[%clk 0:03:00.3]} 6. Nf3 {[%clk 0:03:01.3]} 6... Nf6 {[%clk 0:02:55.2]} 7. O-O
{[%clk 0:03:02.5]} 7... O-O {[%clk 0:02:55.9]} 8. h3 {[%clk 0:03:03.2]} 8... b5
{[%clk 0:02:51.7]} 9. Nc3 {[%clk 0:03:03.9]} 9... b4 {[%clk 0:02:49.8]} 10. Ne2
{[%clk 0:03:04.9]} 10... a5 {[%clk 0:02:50.8]} 11. g4 {[%clk 0:03:05.2]} 11...
Nd7 {[%clk 0:02:47.2]} 12. Rb1 {[%clk 0:02:29.2]} 12... a4 {[%clk 0:02:45.4]}
13. a3 {[%clk 0:02:29.8]} 13... Ba6 {[%clk 0:02:43.5]} 14. Be3 {[%clk
0:02:25.3]} 14... Rb8 {[%clk 0:02:42.5]} 15. axb4 {[%clk 0:02:00.2]} 15... Rxb4
{[%clk 0:02:41.3]} 16. c3 {[%clk 0:01:59.1]} 16... Rb6 {[%clk 0:02:36.6]} 17.
Qc2 {[%clk 0:01:47]} 17... Rb8 {[%clk 0:02:25.4]} 18. Rfd1 {[%clk 0:01:46.8]}
18... Qa5 {[%clk 0:02:25.1]} 19. Ra1 {[%clk 0:01:46.4]} 19... Nb6 {[%clk
0:02:19.6]} 20. Bc1 {[%clk 0:01:25.4]} 20... Bb5 {[%clk 0:02:18.8]} 21. h4
{[%clk 0:01:10.5]} 21... Qa7 {[%clk 0:02:09.8]} 22. h5 {[%clk 0:01:05.4]} 22...
Qd7 {[%clk 0:02:09.3]} 23. f5 {[%clk 0:00:57.3]} 23... Ne5 {[%clk 0:02:10.1]}
24. Nxe5 {[%clk 0:00:52.3]} 24... Bxe5 {[%clk 0:02:12]} 25. hxg6 {[%clk
0:00:49.2]} 25... fxg6 {[%clk 0:02:10.8]} 26. Nf4 {[%clk 0:00:41.3]} 26... Bc6
{[%clk 0:02:03.2]} 27. Ne6 {[%clk 0:00:26.1]} 27... Rf6 {[%clk 0:02:04.3]} 28.
Qe2 {[%clk 0:00:19]} 28... Bb5 {[%clk 0:01:59.8]} 29. Be3 {[%clk 0:00:18.3]}
29... Rxe6 {[%clk 0:01:59.3]} 30. fxe6 {[%clk 0:00:19]} 30... Qxe6 {[%clk
0:02:01.2]} 31. Rf1 {[%clk 0:00:17.5]} 31... Nd7 {[%clk 0:01:57.4]} 32. Rf2
{[%clk 0:00:17.1]} 32... Nf6 {[%clk 0:01:58.1]} 33. Bh3 {[%clk 0:00:17]} 33...
Bd7 {[%clk 0:01:52.2]} 34. Raf1 {[%clk 0:00:15.8]} 34... Nxg4 {[%clk 0:01:50.9]}
35. Rg2 {[%clk 0:00:15.1]} 35... h5 {[%clk 0:01:51.6]} 36. Bxg4 {[%clk
0:00:15.3]} 36... hxg4 {[%clk 0:01:53.5]} 37. d4 {[%clk 0:00:16.5]} 37... cxd4
{[%clk 0:01:51.3]} 38. cxd4 {[%clk 0:00:18.4]} 38... Bg7 {[%clk 0:01:52.1]} 39.
Rf4 {[%clk 0:00:16.3]} 39... Rb3 {[%clk 0:01:48.8]} 40. Rfxg4 {[%clk 0:00:14]}
40... Qxg4 {[%clk 0:01:32.7]} 41. Rxg4 {[%clk 0:00:14.1]} 41... Bxg4 {[%clk
0:01:34.3]} 42. Qxg4 {[%clk 0:00:13.5]} 42... Rxe3 {[%clk 0:01:35.8]} 43. Qxg6
{[%clk 0:00:12.1]} 43... Rb3 {[%clk 0:01:28]} 44. Qe6+ {[%clk 0:00:12.8]} 44...
Kf8 {[%clk 0:01:27.2]} 45. Qc4 {[%clk 0:00:14.7]} 45... Rxb2 {[%clk 0:01:26.4]}
46. Qxa4 {[%clk 0:00:15.8]} 46... Rd2 {[%clk 0:01:26.2]} 47. e5 {[%clk
0:00:15.5]} 47... dxe5 {[%clk 0:01:24.2]} 48. dxe5 {[%clk 0:00:17.1]} 48... Bxe5
{[%clk 0:01:20.1]} 49. Qe4 {[%clk 0:00:18.3]} 49... Bf6 {[%clk 0:01:19.2]} 50.
Qf5 {[%clk 0:00:17.1]} 50... Rd4 {[%clk 0:01:19.6]} 51. Qc8+ {[%clk 0:00:17.2]}
51... Kf7 {[%clk 0:01:20.1]} 52. Qf5 {[%clk 0:00:17.6]} 52... Rd6 {[%clk
0:01:18.7]} 53. Qh5+ {[%clk 0:00:17.9]} 53... Ke6 {[%clk 0:01:19.5]} 54. Qg4+
{[%clk 0:00:18.4]} 54... Kd5 {[%clk 0:01:20.6]} 55. Qf3+ {[%clk 0:00:19]} 55...
Kc5 {[%clk 0:01:21.2]} 56. Qa3+ {[%clk 0:00:19.5]} 56... Kc6 {[%clk 0:01:20.7]}
57. Qa4+ {[%clk 0:00:20.3]} 57... Kd5 {[%clk 0:01:22]} 58. Qb3+ {[%clk 0:00:21]}
58... Ke4 {[%clk 0:01:23.1]} 59. Kf1 {[%clk 0:00:20.5]} 59... Bd4 {[%clk
0:01:20]} 60. Qc2+ {[%clk 0:00:20.5]} 60... Ke5 {[%clk 0:01:20.2]} 61. Qc7
{[%clk 0:00:21.7]} 61... Kf6 {[%clk 0:01:20.5]} 62. Qc8 {[%clk 0:00:21.8]} 62...
e5 {[%clk 0:01:20.1]} 63. Qh8+ {[%clk 0:00:22.1]} 63... Ke6 {[%clk 0:01:21.6]}
64. Qe8+ {[%clk 0:00:22.6]} 64... Kd5 {[%clk 0:01:22.7]} 65. Qb5+ {[%clk
0:00:24.1]} 65... Bc5 {[%clk 0:01:22.7]} 66. Qd3+ {[%clk 0:00:24.9]} 66... Kc6
{[%clk 0:01:23.3]} 67. Qa6+ {[%clk 0:00:25.5]} 67... Kd7 {[%clk 0:01:23.9]} 68.
Qb5+ {[%clk 0:00:26]} 68... Rc6 {[%clk 0:01:24.2]} 69. Qb7+ {[%clk 0:00:27.1]}
69... Kd6 {[%clk 0:01:25.4]} 70. Qb8+ {[%clk 0:00:28.1]} 70... Kd5 {[%clk
0:01:26.8]} 71. Qb3+ {[%clk 0:00:29.1]} 71... Kd6 {[%clk 0:01:26]} 72. Qb8+
{[%clk 0:00:28.4]} 72... Kd7 {[%clk 0:01:23.4]} 73. Ke2 {[%clk 0:00:27.5]} 73...
Bd6 {[%clk 0:01:22.2]} 74. Qb7+ {[%clk 0:00:28.4]} 74... Rc7 {[%clk 0:01:22.7]}
75. Qb5+ {[%clk 0:00:29.9]} 75... Ke7 {[%clk 0:01:22.8]} 76. Kd3 {[%clk
0:00:29]} 76... Rc5 {[%clk 0:01:23.3]} 77. Qb7+ {[%clk 0:00:29.4]} 77... Rc7
{[%clk 0:01:24.2]} 78. Qa8 {[%clk 0:00:29.6]} 78... e4+ {[%clk 0:01:16.3]} 79.
Qxe4+ {[%clk 0:00:25.2]} 79... Kd7 {[%clk 0:01:16.9]} 80. Qh7+ {[%clk
0:00:25.6]} 80... Kc6 {[%clk 0:01:17.9]} 81. Qe4+ {[%clk 0:00:26.7]} 81... Kd7
{[%clk 0:01:19]} 82. Qf5+ {[%clk 0:00:27.5]} 82... Kc6 {[%clk 0:01:20.1]} 83.
Qe6 {[%clk 0:00:28.2]} 83... Re7 {[%clk 0:01:20.5]} 84. Qc4+ {[%clk 0:00:28.8]}
84... Kd7 {[%clk 0:01:21.9]} 85. Qb5+ {[%clk 0:00:29.9]} 85... Kc7 {[%clk
0:01:22.3]} 86. Kd4 {[%clk 0:00:28.6]} 86... Re5 {[%clk 0:01:23.1]} 87. Qc4+
{[%clk 0:00:28]} 87... Kd7 {[%clk 0:01:23.9]} 88. Qf7+ {[%clk 0:00:28.3]} 88...
Kc6 {[%clk 0:01:25.2]} 89. Qf3+ {[%clk 0:00:29.2]} 89... Kd7 {[%clk 0:01:26.3]}
90. Qb7+ {[%clk 0:00:30.1]} 90... Ke6 {[%clk 0:01:27.6]} 91. Qc8+ {[%clk
0:00:31.2]} 91... Ke7 {[%clk 0:01:28.4]} 92. Qg4 {[%clk 0:00:29.9]} 92... Rc5
{[%clk 0:01:25.6]} 93. Qg7+ {[%clk 0:00:29.8]} 93... Ke6 {[%clk 0:01:26.2]} 94.
Qg6+ {[%clk 0:00:31]} 94... Ke7 {[%clk 0:01:27.4]} 95. Qh7+ {[%clk 0:00:31.5]}
95... Ke6 {[%clk 0:01:28.5]} 96. Qg8+ {[%clk 0:00:32.2]} 96... Ke7 {[%clk
0:01:29.7]} 97. Ke4 {[%clk 0:00:32.7]} 97... Re5+ {[%clk 0:01:29.2]} 98. Kd4
{[%clk 0:00:32.6]} 98... Rc5 {[%clk 0:01:30]} 99. Qa8 {[%clk 0:00:32.5]} 99...
Re5 {[%clk 0:01:30.6]} 100. Kd3 {[%clk 0:00:31.6]} 100... Rc5 {[%clk 0:01:31.3]}
101. Qa7+ {[%clk 0:00:32]} 101... Ke6 {[%clk 0:01:31.9]} 102. Qh7 {[%clk
0:00:32.3]} 102... Re5 {[%clk 0:01:32.6]} 103. Qh6+ {[%clk 0:00:33]} 103... Ke7
{[%clk 0:01:33.6]} 104. Kc4 {[%clk 0:00:32.6]} 104... Rc5+ {[%clk 0:01:34.3]}
105. Kb3 {[%clk 0:00:33.7]} 105... Re5 {[%clk 0:01:36.2]} 106. Qg7+ {[%clk
0:00:34.2]} 106... Ke6 {[%clk 0:01:36.6]} 107. Qg6+ {[%clk 0:00:35.5]} 107...
Ke7 {[%clk 0:01:37]} 108. Ka4 {[%clk 0:00:35.3]} 108... Rc5 {[%clk 0:01:37.5]}
109. Qg7+ {[%clk 0:00:36.4]} 109... Ke6 {[%clk 0:01:38.2]} 110. Qg8+ {[%clk
0:00:37.6]} 110... Ke7 {[%clk 0:01:39.4]} 111. Qa8 {[%clk 0:00:37.6]} 111... Ke6
{[%clk 0:01:40.2]} 112. Qe4+ {[%clk 0:00:38.3]} 112... Kd7 {[%clk 0:01:41.2]}
113. Qg4+ {[%clk 0:00:38.9]} 113... Ke7 {[%clk 0:01:42.1]} 114. Kb3 {[%clk
0:00:39.8]} 114... Re5 {[%clk 0:01:42.4]} 115. Kc2 {[%clk 0:00:37.9]} 115...
Rc5+ {[%clk 0:01:44.3]} 116. Kd1 {[%clk 0:00:38.5]} 116... Re5 {[%clk
0:01:46.2]} 117. Kd2 {[%clk 0:00:37.6]} 117... Rd5+ {[%clk 0:01:46.5]} 118. Ke2
{[%clk 0:00:38.3]} 118... Re5+ {[%clk 0:01:47.6]} 119. Kf1 {[%clk 0:00:38.7]}
119... Rc5 {[%clk 0:01:49.1]} 120. Qd4 {[%clk 0:00:38.7]} 120... Re5 {[%clk
0:01:51]} 121. Kg2 {[%clk 0:00:38.6]} 121... Rc5 {[%clk 0:01:51.9]} 122. Qe4+
{[%clk 0:00:39.5]} 122... Re5 {[%clk 0:01:53.8]} 123. Qb7+ {[%clk 0:00:40.9]}
123... Ke6 {[%clk 0:01:53.8]} 124. Kf3 {[%clk 0:00:42.8]} 124... Rc5 {[%clk
0:01:54.1]} 125. Qa8 {[%clk 0:00:42.9]} 125... Ke7 {[%clk 0:01:53.8]} 126. Kg4
{[%clk 0:00:42.8]} 126... Re5 {[%clk 0:01:54.6]} 127. Qc6 {[%clk 0:00:41.3]}
127... Rc5 {[%clk 0:01:54.8]} 128. Qa4 {[%clk 0:00:41.2]} 128... Re5 {[%clk
0:01:54.8]} 129. Qa2 {[%clk 0:00:41.7]} 129... Rc5 {[%clk 0:01:52.8]} 130. Qe2+
{[%clk 0:00:42.4]} 130... Re5 {[%clk 0:01:53.3]} 131. Qd1 {[%clk 0:00:42.6]}
131... Rc5 {[%clk 0:01:53.8]} 132. Kh3 {[%clk 0:00:42.8]} 132... Re5 {[%clk
0:01:54.3]} 133. Qg4 {[%clk 0:00:42.8]} 1/2-1/2

[Event "*** Titled Tuesday 3|2 Blitz"]
[Site "Chess.com"]
[Date "2017.06.06"]
[Round "9"]
[White "yian123"]
[Black "Squirlolz"]
[Result "0-1"]
[WhiteElo "2395"]
[BlackElo "2363"]
[TimeControl "180+2"]
[EndTime "15:41:57 PDT"]
[Termination "Squirlolz won by resignation"]

1. e4 {[%clk 0:03:02]} 1... e6 {[%clk 0:02:59.9]} 2. d4 {[%clk 0:03:00.8]} 2...
d5 {[%clk 0:03:01.4]} 3. Nd2 {[%clk 0:03:02.4]} 3... c5 {[%clk 0:03:01.6]} 4.
Ngf3 {[%clk 0:03:02.8]} 4... cxd4 {[%clk 0:03:02.2]} 5. Nxd4 {[%clk 0:03:04]}
5... Nc6 {[%clk 0:03:02.8]} 6. Bb5 {[%clk 0:03:04.3]} 6... Bd7 {[%clk
0:03:03.5]} 7. Nxc6 {[%clk 0:03:04.7]} 7... bxc6 {[%clk 0:03:05.1]} 8. Bd3
{[%clk 0:03:06.1]} 8... Bd6 {[%clk 0:03:06.6]} 9. O-O {[%clk 0:03:06.2]} 9...
Qc7 {[%clk 0:03:07.4]} 10. h3 {[%clk 0:03:06.7]} 10... e5 {[%clk 0:03:04]} 11.
Qg4 {[%clk 0:03:03.6]} 11... Bxg4 {[%clk 0:03:03.4]} 0-1

[Event "*** Titled Tuesday 3|2 Blitz"]
[Site "Chess.com"]
[Date "2017.06.06"]
[Round "9"]
[White "PaulfromSPb"]
[Black "Ivan11Martic"]
[Result "1-0"]
[WhiteElo "2577"]
[BlackElo "2394"]
[TimeControl "180+2"]
[EndTime "15:44:58 PDT"]
[Termination "PaulfromSPb won by checkmate"]

1. e4 {[%clk 0:03:02]} 1... c5 {[%clk 0:03:00.4]} 2. Ne2 {[%clk 0:03:02.5]} 2...
Nc6 {[%clk 0:03:00.4]} 3. g3 {[%clk 0:03:03.4]} 3... g6 {[%clk 0:03:00.4]} 4.
Bg2 {[%clk 0:03:04.4]} 4... Bg7 {[%clk 0:03:01.7]} 5. O-O {[%clk 0:03:06.3]}
5... d6 {[%clk 0:03:00.3]} 6. c3 {[%clk 0:03:07.4]} 6... Nf6 {[%clk 0:02:55.8]}
7. d4 {[%clk 0:03:08.4]} 7... cxd4 {[%clk 0:02:53.5]} 8. cxd4 {[%clk 0:03:10.3]}
8... O-O {[%clk 0:02:55.2]} 9. Nbc3 {[%clk 0:03:10.9]} 9... Bd7 {[%clk
0:02:47.8]} 10. h3 {[%clk 0:03:11.3]} 10... Rc8 {[%clk 0:02:47.6]} 11. Be3
{[%clk 0:03:11.4]} 11... a6 {[%clk 0:02:45.9]} 12. Rc1 {[%clk 0:03:11.5]} 12...
Qa5 {[%clk 0:02:44.9]} 13. a3 {[%clk 0:03:12]} 13... b5 {[%clk 0:02:43.9]} 14.
f4 {[%clk 0:03:07.9]} 14... b4 {[%clk 0:02:41.8]} 15. axb4 {[%clk 0:03:08.5]}
15... Nxb4 {[%clk 0:02:43.7]} 16. e5 {[%clk 0:03:09]} 16... dxe5 {[%clk
0:02:44.2]} 17. dxe5 {[%clk 0:03:09.5]} 17... Rfd8 {[%clk 0:02:38.8]} 18. exf6
{[%clk 0:03:10.2]} 18... Bxh3 {[%clk 0:02:37.6]} 19. Bxh3 {[%clk 0:03:05.3]}
19... Rxd1 {[%clk 0:02:37.1]} 20. Rfxd1 {[%clk 0:03:04.8]} 20... Rd8 {[%clk
0:02:31]} 21. fxg7 {[%clk 0:03:02.5]} 21... Kxg7 {[%clk 0:02:23]} 22. Rxd8
{[%clk 0:02:55.2]} 22... Qxd8 {[%clk 0:02:24.9]} 23. Rd1 {[%clk 0:02:55.8]}
23... Qa5 {[%clk 0:02:25.4]} 24. Bd4+ {[%clk 0:02:54.8]} 24... f6 {[%clk
0:02:24.4]} 25. Bg2 {[%clk 0:02:52.4]} 25... Nc2 {[%clk 0:02:22.9]} 26. Bf2
{[%clk 0:02:51.6]} 26... Qb4 {[%clk 0:02:22.1]} 27. Rd7 {[%clk 0:02:50.3]} 27...
Qxb2 {[%clk 0:02:16.8]} 28. Rxe7+ {[%clk 0:02:51.1]} 28... Kh6 {[%clk
0:02:18.3]} 29. g4 {[%clk 0:02:47.1]} 29... Nb4 {[%clk 0:02:15]} 30. Be3 {[%clk
0:02:41.2]} 30... Nc2 {[%clk 0:02:08.8]} 31. g5+ {[%clk 0:02:40.5]} 31... fxg5
{[%clk 0:02:10.7]} 32. fxg5+ {[%clk 0:02:41.1]} 32... Kh5 {[%clk 0:02:12.4]} 33.
Bf3+ {[%clk 0:02:42.2]} 33... Kh4 {[%clk 0:02:12.6]} 34. Rxh7# {[%clk
0:02:42.5]} 1-0

[Event "*** Titled Tuesday 3|2 Blitz"]
[Site "Chess.com"]
[Date "2017.06.06"]
[Round "9"]
[White "Rating-Schmating"]
[Black "viggi38"]
[Result "0-1"]
[WhiteElo "2303"]
[BlackElo "2147"]
[TimeControl "180+2"]
[EndTime "15:45:51 PDT"]
[Termination "viggi38 won by checkmate"]

1. e4 {[%clk 0:03:01.9]} 1... d5 {[%clk 0:03:00.1]} 2. exd5 {[%clk 0:03:00.7]}
2... Qxd5 {[%clk 0:03:02]} 3. Nc3 {[%clk 0:03:01.8]} 3... Qd6 {[%clk 0:03:03.1]}
4. Nf3 {[%clk 0:03:02.2]} 4... Bg4 {[%clk 0:03:01.7]} 5. g3 {[%clk 0:03:01.2]}
5... Qe6+ {[%clk 0:02:58.8]} 6. Qe2 {[%clk 0:02:41.9]} 6... Bxf3 {[%clk
0:02:58.1]} 7. Qxe6 {[%clk 0:02:37.4]} 7... fxe6 {[%clk 0:03:00]} 8. Rg1 {[%clk
0:02:35.1]} 8... Nc6 {[%clk 0:03:00.1]} 9. b3 {[%clk 0:02:35.7]} 9... Nb4 {[%clk
0:02:57.5]} 10. Bd3 {[%clk 0:02:37]} 10... O-O-O {[%clk 0:02:54.9]} 11. Bb2
{[%clk 0:02:37.6]} 11... Rxd3 {[%clk 0:02:43.7]} 12. cxd3 {[%clk 0:02:39.5]}
12... Nc2+ {[%clk 0:02:38.9]} 13. Kf1 {[%clk 0:02:38.9]} 13... Nxa1 {[%clk
0:02:40.8]} 14. Bxa1 {[%clk 0:02:39]} 14... Nf6 {[%clk 0:02:40.6]} 15. h3 {[%clk
0:02:38.9]} 15... g6 {[%clk 0:02:39.1]} 16. g4 {[%clk 0:02:39.2]} 16... Bg7
{[%clk 0:02:36.9]} 17. Nb5 {[%clk 0:02:40.5]} 17... a6 {[%clk 0:02:34.1]} 18.
Nd4 {[%clk 0:02:40.4]} 18... Bd5 {[%clk 0:02:33.5]} 19. f4 {[%clk 0:02:39.9]}
19... Nd7 {[%clk 0:02:31.8]} 20. Ke2 {[%clk 0:02:37.4]} 20... c5 {[%clk
0:02:23.3]} 21. Nc2 {[%clk 0:02:29.9]} 21... Bxa1 {[%clk 0:02:22.3]} 22. Rxa1
{[%clk 0:02:31.8]} 22... Rf8 {[%clk 0:02:22.8]} 23. Rf1 {[%clk 0:02:30.9]} 23...
e5 {[%clk 0:02:16.9]} 24. Ne3 {[%clk 0:02:29.9]} 24... Bc6 {[%clk 0:02:14.1]}
25. f5 {[%clk 0:02:31.4]} 25... gxf5 {[%clk 0:02:13]} 26. gxf5 {[%clk
0:02:32.6]} 26... Nf6 {[%clk 0:02:10.9]} 27. Nc4 {[%clk 0:02:32.8]} 27... e4
{[%clk 0:02:10.8]} 28. Ne5 {[%clk 0:02:28.3]} 28... exd3+ {[%clk 0:02:10.5]} 29.
Kxd3 {[%clk 0:02:29.6]} 29... Bb5+ {[%clk 0:02:10.5]} 30. Ke3 {[%clk 0:02:31]}
30... Bxf1 {[%clk 0:02:10.2]} 31. Ng6 {[%clk 0:02:31.2]} 31... hxg6 {[%clk
0:02:10.2]} 32. Kf3 {[%clk 0:02:33.1]} 32... gxf5 {[%clk 0:02:10.1]} 33. Kf4
{[%clk 0:02:35]} 33... Bxh3 {[%clk 0:02:09.6]} 34. Ke5 {[%clk 0:02:36.9]} 34...
Ng4+ {[%clk 0:02:09.6]} 35. Ke6 {[%clk 0:02:38.8]} 35... Kd8 {[%clk 0:02:08.5]}
36. Kd5 {[%clk 0:02:39.8]} 36... Rf6 {[%clk 0:02:06.6]} 37. Kc4 {[%clk
0:02:41.7]} 37... Rd6 {[%clk 0:02:07.3]} 38. b4 {[%clk 0:02:43.6]} 38... Ne5+
{[%clk 0:02:06.5]} 39. Kb3 {[%clk 0:02:45.5]} 39... c4+ {[%clk 0:02:06.2]} 40.
Ka4 {[%clk 0:02:47.4]} 40... Bg4 {[%clk 0:02:06.2]} 41. Ka5 {[%clk 0:02:49.3]}
41... Bd1 {[%clk 0:02:02.1]} 42. a4 {[%clk 0:02:51.2]} 42... Kc7 {[%clk
0:02:01.3]} 43. d4 {[%clk 0:02:50.9]} 43... Nc6# {[%clk 0:02:01.4]} 0-1

[Event "*** Titled Tuesday 3|2 Blitz"]
[Site "Chess.com"]
[Date "2017.06.06"]
[Round "9"]
[White "Ind1anStar"]
[Black "axvesik"]
[Result "1/2-1/2"]
[WhiteElo "2310"]
[BlackElo "2347"]
[TimeControl "180+2"]
[EndTime "15:46:18 PDT"]
[Termination "Game drawn by repetition"]

1. e4 {[%clk 0:03:02]} 1... e6 {[%clk 0:03:00.3]} 2. d4 {[%clk 0:03:01.7]} 2...
d5 {[%clk 0:03:00.9]} 3. Nd2 {[%clk 0:03:03]} 3... Be7 {[%clk 0:03:01.3]} 4.
Ngf3 {[%clk 0:03:02.2]} 4... Nf6 {[%clk 0:03:01.2]} 5. Bd3 {[%clk 0:03:03.7]}
5... c5 {[%clk 0:03:01.2]} 6. c3 {[%clk 0:03:04.9]} 6... cxd4 {[%clk 0:03:00.3]}
7. Nxd4 {[%clk 0:03:05.1]} 7... dxe4 {[%clk 0:03:00.2]} 8. Nxe4 {[%clk
0:03:04.6]} 8... O-O {[%clk 0:02:59.6]} 9. O-O {[%clk 0:03:02.9]} 9... Nbd7
{[%clk 0:03:00.5]} 10. Nxf6+ {[%clk 0:03:00.1]} 10... Nxf6 {[%clk 0:03:01]} 11.
Qe2 {[%clk 0:02:58.8]} 11... a6 {[%clk 0:03:01.3]} 12. Bg5 {[%clk 0:02:58.5]}
12... Qc7 {[%clk 0:03:01.5]} 13. h3 {[%clk 0:02:52.1]} 13... b5 {[%clk
0:03:01.2]} 14. Bxf6 {[%clk 0:02:48.6]} 14... gxf6 {[%clk 0:02:50.9]} 15. Rfe1
{[%clk 0:01:51.7]} 15... Bc5 {[%clk 0:02:00.5]} 16. Qh5 {[%clk 0:01:19]} 16...
f5 {[%clk 0:01:56.7]} 17. Qg5+ {[%clk 0:01:19.7]} 17... Kh8 {[%clk 0:01:52.2]}
18. Qf6+ {[%clk 0:01:18.6]} 18... Kg8 {[%clk 0:01:44.2]} 19. Nxf5 {[%clk
0:01:03.1]} 19... exf5 {[%clk 0:01:42.7]} 20. Qg5+ {[%clk 0:00:57.6]} 20... Kh8
{[%clk 0:01:42.8]} 21. Qf6+ {[%clk 0:00:59.1]} 21... Kg8 {[%clk 0:01:43.8]} 22.
Qg5+ {[%clk 0:01:00.2]} 22... Kh8 {[%clk 0:01:44.8]} 23. Qf6+ {[%clk 0:01:00.8]}
23... Kg8 {[%clk 0:01:45.8]} 24. Qg5+ {[%clk 0:01:01.4]} 24... Kh8 {[%clk
0:01:46.6]} 25. Qf6+ {[%clk 0:01:03]} 1/2-1/2

[Event "*** Titled Tuesday 3|2 Blitz"]
[Site "Chess.com"]
[Date "2017.06.06"]
[Round "9"]
[White "Indianlad"]
[Black "Patov"]
[Result "0-1"]
[WhiteElo "2573"]
[BlackElo "2344"]
[TimeControl "180+2"]
[EndTime "15:47:05 PDT"]
[Termination "Patov won by resignation"]

1. e4 {[%clk 0:03:02]} 1... c5 {[%clk 0:02:58.5]} 2. Nf3 {[%clk 0:03:03.1]} 2...
Nc6 {[%clk 0:02:59.4]} 3. d4 {[%clk 0:03:04.4]} 3... cxd4 {[%clk 0:03:00.8]} 4.
Nxd4 {[%clk 0:03:05.6]} 4... Qb6 {[%clk 0:03:01.5]} 5. Nb5 {[%clk 0:03:04.5]}
5... Nf6 {[%clk 0:02:51.1]} 6. Be3 {[%clk 0:03:04]} 6... Qd8 {[%clk 0:02:52.1]}
7. N1c3 {[%clk 0:03:04.1]} 7... a6 {[%clk 0:02:21.2]} 8. Nd4 {[%clk 0:03:03.6]}
8... e5 {[%clk 0:02:18.7]} 9. Nxc6 {[%clk 0:02:45.8]} 9... bxc6 {[%clk
0:02:15.1]} 10. Bc4 {[%clk 0:02:47.7]} 10... Bb4 {[%clk 0:02:11.1]} 11. O-O
{[%clk 0:02:45.8]} 11... O-O {[%clk 0:02:12.2]} 12. Qf3 {[%clk 0:02:44.5]} 12...
d5 {[%clk 0:02:06.2]} 13. exd5 {[%clk 0:02:44.7]} 13... Bxc3 {[%clk 0:02:07.5]}
14. bxc3 {[%clk 0:02:42]} 14... cxd5 {[%clk 0:02:08.9]} 15. Bb3 {[%clk
0:02:39.9]} 15... Qc7 {[%clk 0:02:05.9]} 16. Qg3 {[%clk 0:02:40.4]} 16... Ne4
{[%clk 0:02:04.2]} 17. Qh4 {[%clk 0:02:39.7]} 17... Nxc3 {[%clk 0:01:57.9]} 18.
f4 {[%clk 0:02:38.3]} 18... f6 {[%clk 0:01:49.9]} 19. fxe5 {[%clk 0:02:37.6]}
19... Qxe5 {[%clk 0:01:51.6]} 20. Rae1 {[%clk 0:02:36.1]} 20... Bb7 {[%clk
0:01:51.8]} 21. Kh1 {[%clk 0:02:27.8]} 21... Ne4 {[%clk 0:01:49.6]} 22. Bf4
{[%clk 0:02:22.1]} 22... Qe8 {[%clk 0:01:36.2]} 23. c4 {[%clk 0:01:56.6]} 23...
g5 {[%clk 0:01:31]} 24. Qg4 {[%clk 0:01:50.6]} 24... Nf2+ {[%clk 0:01:19.5]} 25.
Kg1 {[%clk 0:01:49]} 25... Nxg4 {[%clk 0:01:11.2]} 26. Rxe8 {[%clk 0:01:50.9]}
26... Rfxe8 {[%clk 0:01:11]} 27. Bd2 {[%clk 0:01:51.1]} 27... Re2 {[%clk
0:01:07.6]} 28. Bb4 {[%clk 0:01:49.9]} 28... Ne3 {[%clk 0:00:54.5]} 29. Rxf6
{[%clk 0:01:48.2]} 29... Rxg2+ {[%clk 0:00:55.5]} 30. Kh1 {[%clk 0:01:48.9]}
30... dxc4 {[%clk 0:00:56.8]} 0-1

[Event "*** Titled Tuesday 3|2 Blitz"]
[Site "Chess.com"]
[Date "2017.06.06"]
[Round "9"]
[White "Pierrebl"]
[Black "mwpchess"]
[Result "0-1"]
[WhiteElo "2541"]
[BlackElo "2486"]
[TimeControl "180+2"]
[EndTime "15:47:07 PDT"]
[Termination "mwpchess won by resignation"]

1. e4 {[%clk 0:03:02]} 1... c6 {[%clk 0:03:00]} 2. d4 {[%clk 0:03:01.5]} 2... d5
{[%clk 0:03:00.8]} 3. e5 {[%clk 0:03:02.2]} 3... Bf5 {[%clk 0:03:01.4]} 4. Nf3
{[%clk 0:03:03.6]} 4... e6 {[%clk 0:03:02]} 5. Be2 {[%clk 0:03:04.5]} 5... c5
{[%clk 0:03:03.1]} 6. Be3 {[%clk 0:03:05]} 6... Qb6 {[%clk 0:03:03]} 7. Nc3
{[%clk 0:02:56.2]} 7... Nc6 {[%clk 0:03:03.1]} 8. O-O {[%clk 0:02:53.8]} 8...
Qxb2 {[%clk 0:03:03.1]} 9. Qb1 {[%clk 0:02:53.1]} 9... Qxb1 {[%clk 0:03:01.3]}
10. Rfxb1 {[%clk 0:02:46.8]} 10... O-O-O {[%clk 0:03:01.3]} 11. Nb5 {[%clk
0:02:20.1]} 11... c4 {[%clk 0:03:00]} 12. Ne1 {[%clk 0:01:46.7]} 12... a6 {[%clk
0:02:54.4]} 13. Nc3 {[%clk 0:01:46]} 13... Bb4 {[%clk 0:02:45]} 14. Na4 {[%clk
0:01:38.1]} 14... Bxe1 {[%clk 0:02:43.9]} 15. Rxe1 {[%clk 0:01:37.6]} 15... Bxc2
{[%clk 0:02:44.3]} 16. Nc5 {[%clk 0:01:31.8]} 16... b6 {[%clk 0:02:31.8]} 17.
Rec1 {[%clk 0:01:20.7]} 17... bxc5 {[%clk 0:02:28.8]} 18. Rxc2 {[%clk
0:01:20.6]} 18... cxd4 {[%clk 0:02:29.6]} 19. Bg5 {[%clk 0:01:22.2]} 19... Nge7
{[%clk 0:02:22.1]} 20. Bh5 {[%clk 0:00:57]} 20... g6 {[%clk 0:02:10.2]} 21. Bf3
{[%clk 0:00:28.1]} 21... Kd7 {[%clk 0:02:10.2]} 22. Bf6 {[%clk 0:00:27.1]} 22...
Rhg8 {[%clk 0:02:10]} 23. Rb2 {[%clk 0:00:21.3]} 23... Rb8 {[%clk 0:02:09.9]}
24. Rb5 {[%clk 0:00:21.4]} 24... Rxb5 {[%clk 0:02:09.7]} 25. Be4 {[%clk
0:00:23.3]} 25... dxe4 {[%clk 0:02:10]} 26. Bg7 {[%clk 0:00:25.2]} 26... Rxg7
{[%clk 0:02:10.5]} 27. Rd1 {[%clk 0:00:26.5]} 27... Rd5 {[%clk 0:02:10.1]} 28.
h3 {[%clk 0:00:28.4]} 28... Nxe5 {[%clk 0:02:10.3]} 29. Rd3 {[%clk 0:00:29.7]}
29... Nxd3 {[%clk 0:02:11]} 0-1